bitfinex/quotes_BTCUSD_20220304
["timestamp","ask_amount","ask_price","bid_price","bid_amount"]
[1646381095180,0.666995,41456.0,41455.0,0.001]
[1646381095580,0.466995,41456.0,41455.0,0.001]
[1646381096182,0.766995,41456.0,41455.0,0.001]
[1646381096929,0.461995,41456.0,41455.0,0.001]
[1646381097926,0.761995,41456.0,41455.0,0.001]
[1646381098328,0.761995,41456.0,41450.0,0.27462945]
[1646381098635,0.348594,41454.0,41450.0,0.27462945]
[1646381098827,0.361979,41452.0,41450.0,0.27462945]
[1646381099227,0.748594,41451.0,41450.0,0.27462945]
[1646381099426,0.448594,41451.0,41450.0,0.27462945]
[1646381099627,0.498594,41451.0,41450.0,0.27462945]
[1646381099829,0.798594,41451.0,41450.0,0.26180495]
[1646381100028,0.498594,41451.0,41450.0,0.26180495]
[1646381100685,0.76905236,41451.0,41450.0,0.26180495]
[1646381101086,0.498594,41451.0,41450.0,0.26180495]
[1646381101287,0.498594,41451.0,41450.0,0.25680495]
[1646381101985,0.798594,41451.0,41450.0,0.25680495]
[1646381102986,0.498594,41451.0,41450.0,0.25680495]
[1646381103385,0.798594,41451.0,41450.0,0.25680495]
[1646381103588,0.798594,41451.0,41450.0,0.21433679]
[1646381103786,1.02244402,41451.0,41450.0,0.21433679]
[1646381104430,0.798594,41451.0,41450.0,0.21433679]
[1646381105833,0.498594,41451.0,41450.0,0.21433679]
[1646381106135,0.798594,41451.0,41450.0,0.21433679]
[1646381106332,0.798594,41451.0,41450.0,0.21443575]
[1646381108082,0.498594,41451.0,41450.0,0.21443575]
[1646381108483,0.77840236,41451.0,41450.0,0.21443575]
[1646381108688,0.798594,41451.0,41450.0,0.21443575]
[1646381109086,0.798594,41451.0,41450.0,0.20943575]
[1646381109288,0.498594,41451.0,41450.0,0.20943575]
[1646381109488,0.361979,41450.0,41444.0,0.001]
[1646381109690,0.348594,41446.0,41444.0,0.001]
[1646381109888,0.06036918,41450.0,41448.0,0.18312794]
[1646381109889,0.42060543,41449.0,41448.0,0.18312794]
[1646381110091,0.91485289,41449.0,41448.0,0.18312794]
[1646381110287,1.33592867,41449.0,41448.0,0.18312794]
[1646381110889,1.43592867,41449.0,41448.0,0.18312794]
[1646381111090,1.71484291,41449.0,41448.0,0.18312794]
[1646381111293,1.43592867,41449.0,41448.0,0.18312794]
[1646381112134,0.77395567,41449.0,41448.0,0.18312794]
[1646381112332,0.67395567,41449.0,41448.0,0.18312794]
[1646381113934,1.03592867,41449.0,41448.0,0.18312794]
[1646381114132,0.67395567,41449.0,41448.0,0.18312794]
[1646381114431,1.03592867,41449.0,41448.0,0.18312794]
[1646381114632,0.67395567,41449.0,41448.0,0.18312794]
[1646381114833,0.47970821,41449.0,41448.0,0.18312794]
[1646381115382,0.47970821,41449.0,41448.0,0.70026694]
[1646381116086,0.47970821,41449.0,41448.0,0.72441694]
[1646381116285,0.01205,41466.0,41448.0,0.72441694]
[1646381116286,0.01205,41470.0,41450.0,0.02415]
[1646381116486,0.01205,41470.0,41460.0,0.691289]
[1646381116487,0.06033832,41469.0,41460.0,0.691289]
[1646381116681,0.06033832,41469.0,41466.0,0.15]
[1646381116882,0.06033832,41469.0,41468.0,0.15]
[1646381117285,0.38395941,41474.0,41468.0,0.15]
[1646381117485,0.0154525,41469.0,41468.0,0.15]
[1646381118284,0.0154525,41469.0,41468.0,0.517139]
[1646381119434,0.0154525,41469.0,41468.0,0.15]
[1646381121638,0.0154525,41469.0,41468.0,0.15018493]
[1646381122881,0.0154525,41470.0,41468.0,0.15018493]
[1646381126284,0.0154525,41470.0,41468.0,0.33717785]
[1646381126727,0.0154525,41470.0,41468.0,0.33708785]
[1646381127126,0.0154525,41470.0,41469.0,0.23402944]
[1646381127327,0.0154525,41470.0,41469.0,0.60116844]
[1646381127526,0.0154525,41470.0,41468.0,0.33708785]
[1646381127726,0.0154525,41473.0,41468.0,0.33708785]
[1646381127926,0.0154525,41473.0,41472.0,0.15]
[1646381129328,0.0154525,41473.0,41472.0,0.42004508]
[1646381129530,0.0154525,41473.0,41472.0,0.15]
[1646381130777,0.0154525,41473.0,41472.0,0.43751017]
[1646381131178,0.0154525,41473.0,41472.0,0.48751017]
[1646381131879,0.0154525,41473.0,41472.0,0.48769324]
[1646381132481,0.0154525,41473.0,41472.0,0.20018307]
[1646381133483,0.0154525,41473.0,41472.0,0.41067676]
[1646381134129,0.0154525,41473.0,41472.0,0.20018307]
[1646381135934,0.36600384,41474.0,41472.0,0.20018307]
[1646381136737,0.36600384,41474.0,41473.0,0.19316925]
[1646381137534,0.36600384,41474.0,41472.0,0.20018307]
[1646381138683,0.36600384,41474.0,41473.0,0.19755608]
[1646381138883,0.36600384,41474.0,41472.0,0.20018307]
[1646381139283,0.36600384,41474.0,41473.0,0.367139]
[1646381139886,0.08613554,41482.0,41474.0,0.1652994]
[1646381140084,0.03613554,41482.0,41474.0,0.1652994]
[1646381140283,0.11205,41485.0,41481.0,0.2601245]
[1646381140484,0.11205,41485.0,41474.0,0.1652994]
[1646381140485,0.01205,41485.0,41474.0,0.1652994]
[1646381140686,0.25193919,41486.0,41474.0,0.1652994]
[1646381140687,0.0613148,41486.0,41480.0,0.15]
[1646381141085,0.0613148,41486.0,41481.0,0.05]
[1646381141285,0.001,41486.0,41481.0,0.05]
[1646381141485,0.001,41486.0,41481.0,0.21249633]
[1646381141737,0.001,41486.0,41481.0,0.26334936]
[1646381141937,0.01205,41489.0,41481.0,0.26334936]
[1646381142139,0.07455782,41490.0,41481.0,0.26334936]
[1646381142338,0.07455782,41490.0,41481.0,0.21334936]
[1646381142540,0.06250782,41490.0,41481.0,0.21334936]
[1646381144037,0.06250782,41490.0,41480.0,0.15]
[1646381144436,0.06250782,41490.0,41478.0,0.4844567]
[1646381144639,0.06250782,41490.0,41483.0,0.15]
[1646381146692,0.06250782,41490.0,41483.0,0.15008423]
[1646381147092,0.06250782,41490.0,41483.0,0.20008423]
[1646381148094,0.06250782,41490.0,41483.0,0.15008423]
[1646381149144,0.06250782,41490.0,41483.0,0.20008423]
[1646381149947,0.29852027,41491.0,41488.0,0.0478]
[1646381150146,0.29852027,41491.0,41487.0,8.142e-05]
[1646381150147,0.361973,41490.0,41487.0,8.142e-05]
[1646381150546,0.19852027,41491.0,41487.0,8.142e-05]
[1646381150746,0.20152027,41491.0,41487.0,8.142e-05]
[1646381151348,0.004,41491.0,41487.0,8.142e-05]
[1646381151547,0.004,41491.0,41485.0,0.27974923]
[1646381151548,0.004,41491.0,41485.0,0.27983333]
[1646381151949,0.004,41491.0,41488.0,0.15]
[1646381152348,0.004,41491.0,41488.0,0.25]
[1646381152651,0.001,41491.0,41489.0,0.67089344]
[1646381152892,0.001,41491.0,41490.0,0.67089344]
[1646381153090,0.001,41491.0,41490.0,0.467139]
[1646381153487,0.001,41491.0,41490.0,0.77089344]
[1646381153886,0.001,41491.0,41490.0,0.467139]
[1646381154886,0.001,41491.0,41490.0,0.77089344]
[1646381156491,0.001,41491.0,41490.0,0.77105813]
[1646381157634,0.001,41491.0,41490.0,0.87105813]
[1646381160241,0.001,41491.0,41490.0,0.89520813]
[1646381160493,0.001,41491.0,41490.0,0.87105813]
[1646381161094,0.001,41491.0,41490.0,0.89520813]
[1646381161294,0.0007,41502.0,41493.0,0.367139]
[1646381161493,0.0007,41502.0,41501.0,0.417139]
[1646381161694,0.0007,41502.0,41501.0,0.467139]
[1646381162094,0.0007,41502.0,41501.0,0.25]
[1646381162294,0.0007,41502.0,41501.0,0.1]
[1646381162493,0.0007,41502.0,41501.0,0.05]
[1646381162693,0.0007,41502.0,41500.0,0.225]
[1646381166234,0.0007,41502.0,41501.0,0.367139]
[1646381166634,0.0007,41502.0,41501.0,0.36729157]
[1646381166832,0.0007,41502.0,41501.0,0.00015257]
[1646381168086,0.0007,41502.0,41501.0,0.36729157]
[1646381168487,0.0007,41502.0,41501.0,0.00181347]
[1646381171294,0.0007,41502.0,41501.0,0.36895247]
[1646381171934,0.0007,41502.0,41501.0,0.00181347]
[1646381172134,0.0007,41502.0,41501.0,0.36895247]
[1646381172537,0.03801195,41509.0,41501.0,0.36895247]
[1646381172738,0.002,41506.0,41501.0,0.00181347]
[1646381172935,0.002,41506.0,41503.0,0.15]
[1646381173336,0.002,41506.0,41503.0,0.25]
[1646381173737,0.002,41506.0,41505.0,0.05]
[1646381173941,0.03801195,41509.0,41504.0,0.05]
[1646381174138,0.03801195,41509.0,41502.0,0.1]
[1646381174339,0.03801195,41509.0,41502.0,0.05]
[1646381174538,0.03801195,41509.0,41501.0,0.00181347]
[1646381174740,0.20457442,41507.0,41503.0,0.2]
[1646381174939,0.20457442,41507.0,41503.0,0.05]
[1646381175139,0.20457442,41507.0,41504.0,0.2679141]
[1646381175386,0.20457442,41507.0,41503.0,0.2]
[1646381175587,0.0011,41507.0,41503.0,0.25]
[1646381176590,0.361973,41506.0,41501.0,0.00181347]
[1646381176788,0.361973,41506.0,41505.0,0.00024193]
[1646381176988,0.66446184,41506.0,41505.0,0.00024193]
[1646381177386,1.0680065,41506.0,41505.0,0.00024193]
[1646381177988,0.66446184,41506.0,41505.0,0.00024193]
[1646381178788,0.66446184,41506.0,41505.0,0.0015454]
[1646381181635,0.361973,41506.0,41505.0,0.0015454]
[1646381182901,0.0011,41507.0,41505.0,0.0015454]
[1646381182902,0.0511,41507.0,41505.0,0.0015454]
[1646381183101,0.0011,41507.0,41505.0,0.0015454]
[1646381183501,0.0011,41507.0,41506.0,0.15]
[1646381183700,0.0011,41507.0,41506.0,0.25]
[1646381184302,0.25258384,41517.0,41506.0,0.55]
[1646381184503,0.361973,41516.0,41506.0,0.4]
[1646381184700,0.001,41513.0,41510.0,0.25]
[1646381184901,0.361973,41512.0,41511.0,0.20663177]
[1646381185101,0.361973,41512.0,41511.0,0.26433743]
[1646381185302,0.361973,41512.0,41510.0,0.25]
[1646381185903,0.1929704,41512.0,41510.0,0.25]
[1646381186762,0.1929704,41512.0,41511.0,0.26206063]
[1646381188764,0.1929704,41512.0,41510.0,0.25]
[1646381189363,0.1929704,41512.0,41510.0,0.09926]
[1646381189766,0.1929704,41512.0,41507.0,0.05]
[1646381189963,0.193038,41510.0,41507.0,0.2718043]
[1646381190164,0.193038,41515.0,41507.0,0.2718043]
[1646381191183,0.193038,41515.0,41508.0,0.05]
[1646381191584,0.193038,41515.0,41509.0,0.15]
[1646381191789,0.1948,41519.0,41513.0,0.15]
[1646381191790,0.004,41519.0,41513.0,0.15]
[1646381191985,0.001,41519.0,41513.0,0.25]
[1646381192386,0.001,41519.0,41516.0,0.15]
[1646381192586,0.001,41519.0,41516.0,0.36752233]
[1646381192792,0.001,41519.0,41517.0,0.76672214]
[1646381192986,0.001,41519.0,41518.0,0.66672214]
[1646381193185,0.001,41519.0,41518.0,0.71672214]
[1646381193387,0.0001,41520.0,41519.0,0.366702]
[1646381193685,0.0001,41520.0,41519.0,1.08133655]
[1646381193884,0.0021,41524.0,41520.0,1.13]
[1646381194139,0.16652354,41532.0,41523.0,0.390852]
[1646381194140,0.0011,41527.0,41523.0,0.390852]
[1646381194335,0.0021,41532.0,41526.0,0.15]
[1646381194535,0.0021,41532.0,41526.0,0.2]
[1646381194735,0.0021,41532.0,41531.0,0.26599648]
[1646381194937,0.0021,41532.0,41526.0,0.25]
[1646381195335,0.0021,41532.0,41531.0,0.15]
[1646381195536,0.0032,41533.0,41531.0,0.25]
[1646381195934,0.0032,41533.0,41531.0,0.50284104]
[1646381196336,0.0032,41533.0,41532.0,0.48452956]
[1646381196536,0.0032,41533.0,41532.0,0.18450942]
[1646381197140,0.6017,41534.0,41532.0,0.48452956]
[1646381197340,0.07003916,41534.0,41533.0,0.30002014]
[1646381197546,0.07003916,41534.0,41533.0,0.44894054]
[1646381197741,0.07003916,41534.0,41533.0,0.1489204]
[1646381198193,0.0011,41541.0,41534.0,1.45]
[1646381198387,0.0132,41549.0,41538.0,0.1503204]
[1646381198585,0.0132,41549.0,41547.0,0.15]
[1646381198787,0.0132,41549.0,41548.0,0.366702]
[1646381198987,0.0132,41549.0,41547.0,0.25]
[1646381199186,0.0132,41549.0,41547.0,0.62466167]
[1646381200190,0.0132,41549.0,41548.0,0.30002014]
[1646381200389,0.0192982,41565.0,41549.0,1.05]
[1646381200588,0.0192982,41565.0,41552.0,0.15]
[1646381200589,0.0011,41563.0,41552.0,0.15]
[1646381200787,0.0011,41563.0,41552.0,0.2]
[1646381200994,0.0011,41563.0,41552.0,0.25]
[1646381201192,0.0011,41563.0,41560.0,0.20926896]
[1646381201390,0.0011,41563.0,41557.0,0.30002014]
[1646381201650,0.01191486,41565.0,41556.0,0.29766709]
[1646381202352,0.01191486,41565.0,41563.0,0.16526304]
[1646381202550,0.01191486,41565.0,41564.0,0.66672214]
[1646381202754,0.01191486,41565.0,41564.0,0.366702]
[1646381202952,0.001,41569.0,41564.0,0.71672214]
[1646381203154,0.20076,41567.0,41565.0,0.366702]
[1646381203354,0.20076,41567.0,41566.0,0.85452486]
[1646381203552,0.01,41570.0,41567.0,1.4]
[1646381203752,0.0022,41575.0,41568.0,0.30002014]
[1646381203753,0.20076,41572.0,41568.0,0.30002014]
[1646381203953,0.0022,41575.0,41571.0,1.45]
[1646381204158,0.0022,41575.0,41572.0,0.30002014]
[1646381204355,0.05,41580.0,41573.0,1.45]
[1646381204556,0.01201,41584.0,41574.0,0.30002014]
[1646381204755,0.00701,41584.0,41571.0,0.25]
[1646381204955,0.00701,41584.0,41581.0,0.22538699]
[1646381205155,0.193038,41583.0,41571.0,0.25]
[1646381205397,0.18231667,41577.0,41572.0,0.2135232]
[1646381205593,0.18231667,41577.0,41571.0,0.05]
[1646381205794,0.07290753,41575.0,41571.0,0.05]
[1646381205996,0.193038,41574.0,41571.0,0.05]
[1646381206296,0.193038,41574.0,41561.0,0.30002014]
[1646381206495,0.30002014,41573.0,41555.0,0.01201]
[1646381206698,0.293038,41572.0,41553.0,0.01201]
[1646381206897,0.293038,41572.0,41550.0,0.1964]
[1646381206898,0.05994659,41559.0,41550.0,0.1964]
[1646381207099,0.05994659,41559.0,41549.0,0.2644063]
[1646381207100,0.26637499,41557.0,41549.0,0.2644063]
[1646381207297,0.26637499,41557.0,41547.0,0.00120345]
[1646381207298,0.193038,41557.0,41547.0,0.00120345]
[1646381207498,0.36213024,41557.0,41547.0,0.00120345]
[1646381207697,0.36213024,41557.0,41539.0,0.1964]
[1646381207698,0.193038,41555.0,41539.0,0.1964]
[1646381207899,0.193038,41553.0,41536.0,0.4531]
[1646381208099,0.241638,41553.0,41536.0,0.4531]
[1646381208297,0.341638,41553.0,41543.0,0.23431387]
[1646381208497,0.1486,41553.0,41543.0,0.23431387]
[1646381208698,0.193038,41552.0,41543.0,0.23431387]
[1646381209142,0.293038,41552.0,41543.0,0.23431387]
[1646381209344,0.44806268,41552.0,41538.0,0.15]
[1646381209644,0.1851686,41549.0,41538.0,0.15]
[1646381209843,0.493038,41548.0,41538.0,0.15]
[1646381210044,0.3,41548.0,41535.0,0.19781727]
[1646381210244,0.3,41548.0,41538.0,0.15]
[1646381210845,0.3,41548.0,41538.0,0.16321277]
[1646381211246,0.16756891,41542.0,41532.0,0.01203]
[1646381211453,0.193038,41540.0,41532.0,0.01203]
[1646381211647,0.193038,41540.0,41536.0,7.644e-05]
[1646381212053,0.341638,41540.0,41536.0,7.644e-05]
[1646381213188,0.241638,41540.0,41536.0,7.644e-05]
[1646381213390,0.1,41539.0,41536.0,7.644e-05]
[1646381213589,0.193038,41538.0,41536.0,7.644e-05]
[1646381213990,0.0486,41540.0,41536.0,7.644e-05]
[1646381213991,0.0486,41540.0,41536.0,0.22181495]
[1646381214188,0.193038,41539.0,41536.0,0.22181495]
[1646381214391,0.00147495,41548.0,41536.0,0.22181495]
[1646381214392,0.0486,41546.0,41537.0,1.05]
[1646381214593,0.6327,41558.0,41545.0,0.10342886]
[1646381214790,0.025,41558.0,41547.0,0.17776102]
[1646381214990,0.002,41552.0,41550.0,0.2068127]
[1646381215189,0.002,41552.0,41547.0,0.17776102]
[1646381216195,0.002,41552.0,41548.0,0.22379165]
[1646381216839,0.003,41553.0,41548.0,0.22379165]
[1646381217436,0.003,41553.0,41548.0,0.27379165]
[1646381217634,0.003,41553.0,41548.0,0.32379165]
[1646381218237,0.0736,41566.0,41555.0,0.18402814]
[1646381218238,0.22897657,41562.0,41555.0,0.18402814]
[1646381218435,0.22897657,41562.0,41556.0,0.18176399]
[1646381218636,0.17323303,41565.0,41554.0,0.1969719]
[1646381219536,0.22397712,41558.0,41554.0,0.1969719]
[1646381219835,0.1,41564.0,41548.0,0.10143831]
[1646381220036,0.1,41564.0,41550.0,0.05]
[1646381220237,0.1,41564.0,41549.0,0.05]
[1646381220691,0.1,41564.0,41548.0,0.24572412]
[1646381220994,0.23481637,41555.0,41548.0,0.24572412]
[1646381221191,0.20072628,41557.0,41548.0,0.29572412]
[1646381221394,0.20072628,41557.0,41548.0,0.00143831]
[1646381221594,0.20072628,41557.0,41550.0,7.27e-05]
[1646381221595,0.0486,41556.0,41550.0,7.27e-05]
[1646381221991,0.0486,41556.0,41548.0,0.00143831]
[1646381222393,0.06847535,41552.0,41548.0,0.00143831]
[1646381222595,0.0486,41551.0,41548.0,0.00143831]
[1646381222794,0.31744074,41555.0,41550.0,0.19]
[1646381222996,0.24,41552.0,41548.0,0.00143831]
[1646381223294,0.0486,41551.0,41548.0,0.00143831]
[1646381223895,0.0486,41551.0,41550.0,0.0014653]
[1646381226141,0.0486,41551.0,41542.0,0.17109694]
[1646381226340,0.24,41552.0,41545.0,0.18739135]
[1646381226640,0.24,41552.0,41550.0,0.00015328]
[1646381227242,0.24,41552.0,41551.0,0.28431231]
[1646381228005,0.24,41552.0,41551.0,0.49744478]
[1646381228390,0.0486,41566.0,41552.0,1.74041773]
[1646381228592,0.03602786,41572.0,41556.0,0.17301687]
[1646381228593,0.0486,41563.0,41556.0,0.17301687]
[1646381228793,0.0486,41565.0,41556.0,0.22301687]
[1646381228991,0.003,41566.0,41556.0,0.22301687]
[1646381229390,0.22850295,41560.0,41556.0,0.05]
[1646381229591,0.22850295,41560.0,41552.0,0.34041773]
[1646381229794,0.01615027,41576.0,41554.0,1.45]
[1646381229994,1.1543,41597.0,41571.0,0.15]
[1646381229995,1.15930359,41592.0,41571.0,0.15]
[1646381230197,0.0153954,41593.0,41580.0,0.15]
[1646381230394,0.0153954,41593.0,41581.0,0.0486]
[1646381230593,0.0153954,41593.0,41580.0,0.05366]
[1646381230802,0.21862533,41585.0,41571.0,0.05]
[1646381230996,0.21862533,41585.0,41568.0,0.4795473]
[1646381230997,0.21862533,41585.0,41578.0,0.002]
[1646381231395,0.1849743,41584.0,41578.0,0.002]
[1646381231848,0.2621253,41583.0,41578.0,0.002]
[1646381232249,0.2621253,41583.0,41572.0,0.0486]
[1646381232654,0.2621253,41583.0,41564.0,0.06061]
[1646381232655,0.3295473,41582.0,41564.0,0.06061]
[1646381232850,0.1,41581.0,41564.0,0.0486]
[1646381233452,0.37518695,41576.0,41564.0,0.0486]
[1646381233653,0.18192821,41576.0,41564.0,0.0486]
[1646381234656,0.23724525,41576.0,41564.0,0.0486]
[1646381234856,0.18192821,41576.0,41564.0,0.1486]
[1646381235156,0.31366532,41575.0,41564.0,0.2486]
[1646381236593,0.31366532,41575.0,41566.0,7.764e-05]
[1646381237994,0.55366532,41575.0,41566.0,7.764e-05]
[1646381238195,0.31366532,41574.0,41567.0,1.45]
[1646381238396,0.3135378,41583.0,41567.0,1.45]
[1646381238594,0.3135378,41583.0,41567.0,1.2]
[1646381238993,0.00275648,41575.0,41567.0,1.2]
[1646381239246,0.07114547,41572.0,41566.0,0.05007764]
[1646381239640,0.07114547,41572.0,41566.0,7.764e-05]
[1646381241240,0.16813548,41571.0,41566.0,0.27776194]
[1646381241442,0.16813548,41571.0,41569.0,7.503e-05]
[1646381243394,0.00275648,41575.0,41569.0,7.503e-05]
[1646381243994,0.003,41576.0,41569.0,7.503e-05]
[1646381244395,0.1736813,41572.0,41569.0,7.503e-05]
[1646381245597,0.3039162,41571.0,41569.0,7.503e-05]
[1646381245997,0.0486,41570.0,41569.0,7.503e-05]
[1646381246196,0.3525162,41570.0,41569.0,7.503e-05]
[1646381248454,0.5525162,41570.0,41569.0,7.503e-05]
[1646381248653,0.7925162,41570.0,41569.0,7.503e-05]
[1646381249253,0.7425162,41570.0,41569.0,7.503e-05]
[1646381249856,0.6425162,41570.0,41569.0,7.503e-05]
[1646381250254,0.5925162,41570.0,41569.0,7.503e-05]
[1646381251095,0.5925162,41570.0,41559.0,0.15966361]
[1646381251290,0.5925162,41570.0,41559.0,0.20966361]
[1646381251493,0.2886,41570.0,41559.0,0.20966361]
[1646381251793,0.24,41570.0,41569.0,0.00014247]
[1646381254147,0.24,41570.0,41569.0,0.00167049]
[1646381254952,0.24,41570.0,41569.0,0.22720865]
[1646381255147,0.24,41570.0,41569.0,0.05167049]
[1646381255747,0.24,41570.0,41569.0,0.00167049]
[1646381258692,0.24,41570.0,41569.0,0.55167049]
[1646381259092,0.24,41570.0,41569.0,0.65167049]
[1646381259293,0.24,41570.0,41569.0,0.85504057]
[1646381260290,0.24,41570.0,41569.0,0.65167049]
[1646381260493,0.24,41570.0,41569.0,0.20167049]
[1646381260692,0.24,41570.0,41569.0,0.10167049]
[1646381261093,0.24,41570.0,41569.0,0.05167049]
[1646381261494,0.24,41570.0,41569.0,0.31768528]
[1646381261741,0.24,41570.0,41569.0,0.91768528]
[1646381262143,0.24,41570.0,41569.0,0.46768528]
[1646381262343,0.24,41570.0,41569.0,0.20167049]
[1646381262942,0.24,41570.0,41569.0,0.10167049]
[1646381263144,0.24,41570.0,41569.0,7.262e-05]
[1646381264046,0.24,41570.0,41569.0,0.00165095]
[1646381266295,0.24,41570.0,41569.0,0.10165095]
[1646381267098,0.24,41570.0,41569.0,0.05165095]
[1646381267497,0.24,41570.0,41569.0,0.49433502]
[1646381267698,0.24,41570.0,41569.0,0.59433502]
[1646381267904,0.002,41574.0,41570.0,0.59019393]
[1646381268099,0.002,41574.0,41573.0,0.10966361]
[1646381268297,0.002,41574.0,41573.0,0.15966361]
[1646381268697,0.242,41574.0,41573.0,0.15966361]
[1646381268899,0.24,41574.0,41573.0,0.15966361]
[1646381270741,0.183,41574.0,41573.0,0.38427504]
[1646381270942,0.1073,41574.0,41573.0,0.63427504]
[1646381271141,0.1073,41574.0,41573.0,0.73427504]
[1646381271341,0.0963,41599.0,41573.0,0.73427504]
[1646381271342,0.05,41594.0,41577.0,0.2]
[1646381271541,0.30068994,41601.0,41586.0,0.10966361]
[1646381271741,0.04033639,41602.0,41586.0,0.15966361]
[1646381271941,0.07270585,41596.0,41586.0,0.15966361]
[1646381272140,0.27568994,41601.0,41586.0,0.20966361]
[1646381272342,0.30068994,41605.0,41586.0,0.20966361]
[1646381272542,0.03674433,41606.0,41592.0,0.10966361]
[1646381272745,0.21530706,41600.0,41595.0,0.10966361]
[1646381272994,0.07254942,41603.0,41595.0,0.22847361]
[1646381273199,0.03674433,41606.0,41596.0,0.05]
[1646381273394,0.0011,41607.0,41596.0,0.05]
[1646381273395,0.0011,41607.0,41604.0,0.10966361]
[1646381273594,0.0011,41607.0,41604.0,0.27328361]
[1646381273895,0.0011,41608.0,41604.0,0.27328361]
[1646381274095,0.0011,41608.0,41607.0,0.10966361]
[1646381274495,0.0015055,41612.0,41607.0,0.10966361]
[1646381274798,0.06199662,41628.0,41613.0,1.45]
[1646381274996,0.0011,41636.0,41613.0,1.45]
[1646381274997,0.05,41630.0,41626.0,0.10966361]
[1646381275294,0.0011,41636.0,41626.0,0.10966361]
[1646381275295,0.0011,41636.0,41627.0,0.05]
[1646381275496,0.0011,41636.0,41626.0,0.13017]
[1646381275497,0.0011,41636.0,41626.0,0.07039]
[1646381275699,0.0011,41636.0,41619.0,0.30068994]
[1646381276194,0.0011,41636.0,41621.0,0.10966361]
[1646381276398,0.0011,41636.0,41626.0,0.10966361]
[1646381276651,0.0011,41636.0,41627.0,0.30068994]
[1646381276849,0.0011,41636.0,41628.0,0.1]
[1646381277049,0.0011,41636.0,41626.0,0.10966361]
[1646381277250,0.0011,41636.0,41627.0,0.05]
[1646381277451,0.0011,41636.0,41626.0,0.35068994]
[1646381277651,0.0011,41636.0,41632.0,0.10945651]
[1646381277853,0.0011,41636.0,41633.0,0.30068994]
[1646381278050,0.0011,41636.0,41633.0,0.35068994]
[1646381278455,0.0011,41636.0,41634.0,0.30068994]
[1646381278654,0.0011,41636.0,41632.0,0.15945651]
[1646381279355,0.07976976,41641.0,41636.0,0.25]
[1646381279356,0.001,41640.0,41636.0,0.25]
[1646381279558,0.05656976,41641.0,41639.0,0.10945651]
[1646381279759,0.11419928,41662.0,41645.0,0.25]
[1646381279957,0.11419928,41662.0,41656.0,0.09945651]
[1646381280155,0.11419928,41662.0,41656.0,0.0486]
[1646381280399,0.17973413,41657.0,41654.0,0.02863]
[1646381280599,0.17973413,41657.0,41648.0,0.0486]
[1646381280600,0.16973413,41657.0,41648.0,0.0486]
[1646381280802,0.30068994,41656.0,41648.0,0.0436]
[1646381280999,0.12973413,41657.0,41644.0,0.09945651]
[1646381281201,0.03661873,41673.0,41649.0,1.45]
[1646381281405,0.08382042,41684.0,41649.0,1.45]
[1646381281406,0.37610347,41689.0,41672.0,1.0]
[1646381281605,0.37610347,41689.0,41687.0,1.0]
[1646381281805,0.37610347,41689.0,41688.0,2.66904379]
[1646381281806,0.06851347,41689.0,41688.0,2.66904379]
[1646381282000,2.28999,41699.0,41689.0,1.45]
[1646381282201,2.28999,41699.0,41692.0,0.09945651]
[1646381282202,1.28549,41699.0,41692.0,0.09945651]
[1646381282402,0.2950176,41705.0,41694.0,1.45]
[1646381282403,0.08584576,41705.0,41694.0,1.45]
[1646381282606,0.08584576,41705.0,41699.0,0.09945651]
[1646381282801,0.08584576,41705.0,41692.0,0.03319]
[1646381282803,0.08584576,41705.0,41700.0,0.0475]
[1646381283100,0.08584576,41705.0,41701.0,0.0486]
[1646381283304,0.2040988,41704.0,41696.0,0.0486]
[1646381283501,1.45,41702.0,41678.0,0.1]
[1646381283702,0.15,41693.0,41678.0,0.0486]
[1646381283901,0.30068994,41692.0,41677.0,0.06002723]
[1646381284175,0.45068994,41692.0,41675.0,0.12124346]
[1646381284387,0.07078976,41678.0,41675.0,0.00119976]
[1646381284576,0.16753754,41676.0,41675.0,0.00119976]
[1646381284775,0.15,41690.0,41675.0,0.00119976]
[1646381284973,0.30068994,41687.0,41675.0,0.00119976]
[1646381285175,0.0486,41686.0,41666.0,0.8079]
[1646381285575,0.28752275,41674.0,41666.0,0.8079]
[1646381285977,0.18705185,41678.0,41666.0,0.8079]
[1646381286176,0.1986,41694.0,41666.0,0.8079]
[1646381286776,0.1986,41694.0,41667.0,0.1]
[1646381286777,0.16102831,41677.0,41667.0,0.1]
[1646381287176,0.16102831,41677.0,41667.0,0.2]
[1646381287376,0.16102831,41677.0,41666.0,0.8079]
[1646381287577,0.05,41687.0,41666.0,0.8079]
[1646381287776,0.0486,41685.0,41667.0,0.31267994]
[1646381287999,0.05948567,41680.0,41667.0,0.01199]
[1646381288193,0.30068994,41686.0,41667.0,0.01199]
[1646381288597,0.15699721,41677.0,41667.0,0.01199]
[1646381288792,0.15699721,41677.0,41667.0,0.11199]
[1646381288994,0.00166381,41673.0,41667.0,0.16389105]
[1646381289596,0.00166381,41673.0,41667.0,0.15190105]
[1646381291201,0.14866102,41677.0,41668.0,1.45]
[1646381291396,0.14866102,41677.0,41667.0,0.00190105]
[1646381291653,0.14866102,41677.0,41643.0,0.00120068]
[1646381291654,0.15,41668.0,41643.0,0.00120068]
[1646381291844,1.45,41673.0,41643.0,0.00120068]
[1646381291848,0.6077,41663.0,41643.0,0.00120068]
[1646381292044,0.1,41672.0,41643.0,0.00120068]
[1646381292045,0.6077,41660.0,41643.0,0.00120068]
[1646381292244,0.687,41672.0,41643.0,0.00120068]
[1646381292245,0.3486,41659.0,41643.0,0.00120068]
[1646381292443,0.0486,41658.0,41643.0,0.00120068]
[1646381292645,0.0486,41657.0,41643.0,0.00120068]
[1646381292845,0.0486,41656.0,41643.0,0.00620068]
[1646381293047,0.0486,41655.0,41643.0,0.005]
[1646381293244,0.0486,41654.0,41643.0,0.005]
[1646381293445,0.0486,41654.0,41641.0,0.012]
[1646381293446,0.0486,41653.0,41649.0,0.005]
[1646381293648,0.0486,41653.0,41641.0,0.012]
[1646381294645,0.0486,41653.0,41649.0,0.005]